bitfinex/quotes_SOLUSD_20260213
["timestamp","ask_amount","ask_price","bid_price","bid_amount"]
[1770988652470,4.04823608,80.0,79.976,0.48674493]
[1770988652648,3.84823608,80.01,79.976,0.48674493]
[1770988652848,0.2,80.009,79.976,0.48674493]
[1770988653670,0.2,80.007,79.978,0.48674493]
[1770988654169,3.84823608,80.01,79.978,0.48674493]
[1770988655476,4.04823608,80.01,79.978,0.48674493]
[1770988655974,4.04823608,80.01,79.98,0.47270142]
[1770988657072,3.84823608,80.02,79.981,0.47270142]
[1770988657380,0.34471294,80.037,79.979,43.76148738]
[1770988657381,3.84823608,80.03,80.001,0.47270142]
[1770988658252,3.84823608,80.03,80.003,0.47270142]
[1770988658770,3.84823608,80.04,80.003,0.47270142]
[1770988658964,0.2,80.049,80.011,0.47270142]
[1770988659182,3.84823608,80.04,80.011,0.47270142]
[1770988659772,3.84823608,80.03,80.011,0.47270142]
[1770988660472,3.84823608,80.03,80.002,31.24921876]
[1770988660656,0.45821959,80.019,79.992,12.50125012]
[1770988660854,3.84823608,80.03,79.992,43.75437543]
[1770988661969,0.45821959,80.034,79.992,43.75437543]
[1770988662169,4.30645567,80.04,80.0,3.84823608]
[1770988662563,16.80032363,80.04,80.002,43.74890626]
[1770988662764,16.80032363,80.04,80.003,0.47270142]
[1770988663065,4.30645567,80.04,80.003,0.47270142]
[1770988663378,0.45821959,80.04,80.003,0.47270142]
[1770988663584,4.30645567,80.04,80.003,0.47270142]
[1770988663761,12.9521288,80.039,80.003,0.47270142]
[1770988663960,0.45821959,80.039,80.003,0.47270142]
[1770988664472,12.9521288,80.039,80.003,0.47270142]
[1770988664676,0.45821959,80.039,80.003,0.47270142]
[1770988665283,0.45821959,80.039,80.005,0.47270142]
[1770988665481,0.45821959,80.049,80.005,0.47270142]
[1770988665780,0.45821959,80.049,80.011,0.47270142]
[1770988668381,0.45821959,80.049,80.013,0.47270142]
[1770988670266,0.45821959,80.049,80.015,0.47270142]
[1770988670465,0.1,80.05,80.021,0.47270142]
[1770988671778,0.1,80.06,80.031,0.47270142]
[1770988671972,0.1,80.06,80.03,3.84823608]
[1770988671973,0.1,80.06,80.032,60.62]
[1770988672172,0.1,80.06,80.033,0.47270142]
[1770988672377,0.1,80.06,80.042,0.47270142]
[1770988673479,0.1,80.07,80.043,0.47270142]
[1770988673679,3.94823608,80.07,80.043,0.47270142]
[1770988674383,3.94823608,80.07,80.044,12.49312877]
[1770988674883,3.94823608,80.07,80.041,0.47270142]
[1770988675382,0.1,80.07,80.041,0.47270142]
[1770988676592,0.1,80.07,80.043,0.47270142]
[1770988676884,0.1,80.07,80.051,0.47270142]
[1770988677387,3.84823608,80.09,80.051,0.47270142]
[1770988678190,12.4845545,80.099,80.051,0.47270142]
[1770988678392,12.4845545,80.099,80.053,0.47270142]
[1770988678775,3.84823608,80.09,80.055,0.47270142]
[1770988679176,0.41448183,80.089,80.055,0.47270142]
[1770988682779,0.1,80.1,80.06,3.84823608]
[1770988683094,4.36271791,80.1,80.062,0.48802106]
[1770988683294,0.41448183,80.099,80.062,0.48802106]
[1770988684991,0.41448183,80.099,80.064,0.48802106]
[1770988685771,0.41448183,80.099,80.07,3.83868043]
[1770988685998,0.1,80.1,80.073,0.48802106]
[1770988688002,0.1,80.1,80.075,0.48802106]
[1770988688876,0.41448183,80.099,80.063,12.49013349]
[1770988689099,0.41448183,80.089,80.063,12.97815455]
[1770988689778,0.41448183,80.089,80.064,0.48802106]
[1770988690094,0.41448183,80.089,80.065,12.48985199]
[1770988690475,0.41448183,80.089,80.061,60.76]
[1770988690476,0.41448183,80.079,80.061,60.76]
[1770988690773,0.41448183,80.079,80.053,0.48802106]
[1770988691179,0.41448183,80.089,80.053,0.48802106]
[1770988694395,0.41448183,80.099,80.061,0.48802106]
[1770988694580,0.41448183,80.098,80.061,0.48802106]
[1770988694896,3.93868043,80.1,80.061,0.48802106]
[1770988695098,0.41448183,80.099,80.061,0.48802106]
[1770988697278,0.1,80.1,80.071,0.48802106]
[1770988697477,0.1,80.1,80.073,0.48802106]
[1770988698606,0.1,80.1,80.075,0.48802106]
[1770988699103,0.41448183,80.099,80.075,0.48802106]
[1770988700294,0.41448183,80.099,80.076,12.48813627]
[1770988703284,0.41448183,80.099,80.076,12.97615733]
[1770988704799,0.1,80.1,80.077,0.48802106]
[1770988705189,0.1,80.1,80.081,0.48802106]
[1770988705190,0.41448183,80.099,80.081,0.48802106]
[1770988705501,0.1,80.1,80.081,0.48802106]
[1770988707200,0.1,80.1,80.083,0.48802106]
[1770988708793,0.1,80.1,80.085,0.48802106]
[1770988710192,0.1,80.1,80.087,0.48802106]
[1770988710388,0.1,80.1,80.089,0.48802106]
[1770988710592,0.1,80.12,80.091,0.45022899]
[1770988710793,0.1,80.12,80.101,0.45022899]
[1770988711510,0.1,80.12,80.103,0.45022899]
[1770988712213,0.47225888,80.119,80.097,12.93494434]
[1770988712387,0.47225888,80.119,80.103,61.3]
[1770988712913,0.1,80.12,80.104,0.45022899]
[1770988715508,0.1,80.12,80.106,0.45022899]
[1770988718199,0.1,80.12,80.107,12.48330358]
[1770988718607,0.59299906,80.12,80.107,12.48330358]
[1770988720025,0.1,80.12,80.107,12.48330358]
[1770988721011,0.1,80.12,80.108,0.47500262]
[1770988723799,0.1,80.12,80.109,12.48299192]
[1770988724114,0.49299906,80.119,80.103,12.48392694]
[1770988724618,0.49299906,80.119,80.103,12.95892956]
[1770988725116,0.49299906,80.119,80.102,58.06102121]
[1770988725315,3.83868043,80.11,80.088,74.0262651]
[1770988726306,3.83868043,80.11,80.088,74.51902418]
[1770988727000,3.83868043,80.11,80.088,74.0262651]
[1770988727225,3.83868043,80.11,80.09,12.4859533]
[1770988731130,3.83868043,80.11,80.089,61.62]
[1770988732411,3.83868043,80.11,80.09,12.4859533]
[1770988732716,3.83868043,80.1,80.068,0.49275908]
[1770988732934,3.83868043,80.09,80.069,12.48922804]
[1770988734909,3.83868043,80.08,80.056,0.49275908]
[1770988735119,3.83868043,80.08,80.058,0.49275908]
[1770988736416,3.83868043,80.08,80.059,12.49078804]
[1770988739839,3.83868043,80.08,80.059,12.98354712]
[1770988740441,0.49299906,80.088,80.061,0.47500262]
[1770988740644,0.49299906,80.079,80.062,61.74]
[1770988740941,3.83868043,80.08,80.063,0.47858875]
[1770988741144,0.47069774,80.094,80.063,0.47858875]
[1770988741919,0.47069774,80.099,80.065,0.47858875]
[1770988742114,0.47069774,80.109,80.071,0.47858875]
[1770988742525,0.47069774,80.109,80.072,61.76]
[1770988742726,0.47069774,80.114,80.081,0.47858875]
[1770988742930,0.47069774,80.118,80.083,0.47858875]
[1770988743921,0.47069774,80.118,80.084,12.48688876]
[1770988744221,3.83868043,80.11,80.085,0.47858875]
[1770988744426,4.30937817,80.11,80.085,0.47858875]
[1770988745125,0.47069774,80.109,80.087,0.47858875]
[1770988745515,3.93868043,80.12,80.087,0.47858875]
[1770988745721,3.93868043,80.12,80.088,61.78]
[1770988745928,3.93868043,80.12,80.089,0.47858875]
[1770988747034,3.93679289,80.12,80.089,0.47858875]
[1770988747327,3.93679289,80.12,80.091,0.47858875]
[1770988749749,0.47069774,80.119,80.093,0.47858875]
[1770988751250,0.47069774,80.119,80.094,12.48532973]
[1770988751466,0.47069774,80.119,80.095,0.47858875]
[1770988751746,0.47069774,80.117,80.095,0.47858875]
[1770988752748,3.93679289,80.12,80.095,0.47858875]
[1770988752941,0.1,80.12,80.096,0.47858875]
[1770988753247,3.93679289,80.12,80.098,0.47858875]
[1770988753834,0.47069774,80.119,80.097,74.3648621]
[1770988755238,0.47069774,80.119,80.099,12.96313911]
[1770988755926,0.47069774,80.119,80.1,0.47858875]
[1770988756424,0.47069774,80.139,80.101,0.47858875]
[1770988756626,0.47069774,80.139,80.103,0.47858875]
[1770988756838,4.30749063,80.13,80.103,0.47858875]
[1770988757056,0.47069774,80.129,80.103,0.47858875]
[1770988758322,4.30749063,80.11,80.09,31.69346024]
[1770988758527,4.30749063,80.11,80.092,0.47858875]
[1770988759129,0.47069774,80.116,80.092,0.47858875]
[1770988761350,0.47069774,80.116,80.094,0.47858875]
[1770988763048,3.83679289,80.12,80.094,0.47858875]
[1770988763425,3.83679289,80.12,80.096,0.47858875]
[1770988764848,3.83679289,80.13,80.097,0.47858875]
[1770988765226,0.47069774,80.129,80.097,0.47858875]
[1770988765426,0.47069774,80.144,80.1,0.47858875]
[1770988765631,0.47069774,80.139,80.101,0.47858875]
[1770988766462,0.47069774,80.129,80.101,0.47858875]
[1770988766757,0.47069774,80.119,80.102,62.06]
[1770988766960,3.83679289,80.13,80.103,0.47858875]
[1770988767156,12.47769611,80.143,80.103,0.47858875]
[1770988767461,3.83679289,80.14,80.103,0.47858875]
[1770988767839,16.315081,80.14,80.105,0.47858875]
[1770988768446,12.47831892,80.139,80.105,0.47858875]
[1770988768951,0.47069774,80.138,80.105,0.47858875]
[1770988769656,0.47069774,80.138,80.108,0.47858875]
[1770988770557,0.47069774,80.129,80.108,0.47858875]
[1770988771866,0.47069774,80.129,80.109,12.48299192]
[1770988772074,0.47069774,80.129,80.11,0.47565073]
[1770988774361,0.0706047,80.145,80.112,0.47565073]
[1770988774564,0.0706047,80.145,80.121,0.47565073]
[1770988775571,0.0706047,80.145,80.123,0.49785084]
[1770988776264,0.0706047,80.145,80.125,0.49785084]
[1770988777361,0.0706047,80.145,80.126,62.16]
[1770988777668,0.0706047,80.145,80.129,0.49785084]
[1770988779770,0.0706047,80.145,80.131,0.49785084]
[1770988782270,0.0706047,80.145,80.132,12.47940897]
[1770988783466,0.0706047,80.145,80.132,0.49785084]
[1770988786360,0.0706047,80.145,80.134,0.49785084]
[1770988788374,0.1,80.15,80.134,0.49785084]
[1770988790567,0.1,80.15,80.136,0.49785084]
[1770988792167,3.93679289,80.15,80.136,0.49785084]
[1770988794590,0.48047331,80.149,80.136,0.49785084]
[1770988795568,0.48047331,80.149,80.134,12.47907731]
[1770988797769,0.48047331,80.149,80.131,0.49785084]
[1770988799294,0.1,80.15,80.133,0.49785084]
[1770988799893,0.1,80.15,80.135,0.49785084]
[1770988802481,0.1,80.15,80.136,12.96721464]
[1770988802682,12.47376884,80.169,80.138,0.48842858]
[1770988802994,12.47376884,80.169,80.14,0.48842858]
[1770988803379,12.47376884,80.169,80.142,0.48842858]
[1770988803580,3.83679289,80.17,80.142,0.48842858]
[1770988803902,3.83679289,80.17,80.144,0.48842858]
[1770988804898,0.12677646,80.169,80.146,0.48842858]
[1770988805403,0.12677646,80.168,80.148,0.48842858]
[1770988805595,0.12677646,80.168,80.149,0.48842858]
[1770988806799,12.47364941,80.169,80.147,62.52]
[1770988806800,3.83679289,80.16,80.147,62.52]
[1770988807001,3.83342127,80.16,80.147,62.52]
[1770988807406,0.12677646,80.163,80.148,0.48842858]
[1770988807599,0.12677646,80.177,80.149,0.48842858]
[1770988808001,3.83342127,80.17,80.149,0.48842858]
[1770988808613,3.83342127,80.17,80.151,0.48842858]
[1770988808995,3.83342127,80.17,80.153,0.48842858]
[1770988809908,3.83342127,80.17,80.154,12.47598373]
[1770988810213,3.83342127,80.17,80.155,0.48842858]
[1770988810406,3.96019773,80.17,80.155,0.48842858]
[1770988813905,3.96019773,80.17,80.156,12.47567243]
[1770988814820,3.83342127,80.17,80.157,0.48842858]
[1770988817512,0.12677646,80.175,80.157,0.48842858]
[1770988818624,0.12677646,80.175,80.153,0.48842858]
[1770988819010,0.12677646,80.175,80.155,0.48842858]
[1770988821018,3.83342127,80.17,80.155,0.48842858]
[1770988821220,0.12677646,80.169,80.15,75.52499988]
[1770988821427,0.12677646,80.169,80.151,0.48842858]
[1770988823120,0.12677646,80.169,80.152,12.47629503]
[1770988823723,3.83342127,80.16,80.14,12.96644664]
[1770988824018,3.83342127,80.16,80.141,0.5]
[1770988824726,3.83342127,80.18,80.143,0.5]
[1770988824931,3.83342127,80.17,80.143,0.5]
[1770988826218,3.83342127,80.18,80.145,0.5]
[1770988826922,12.47069386,80.188,80.147,0.5]
[1770988827121,12.47069386,80.188,80.151,0.5]
[1770988827427,3.83342127,80.18,80.151,0.5]
[1770988827925,3.70501374,80.18,80.147,0.5]
[1770988830119,12.47209369,80.179,80.148,12.9769177]
[1770988830320,12.47209369,80.179,80.149,0.5]
[1770988832321,12.47209369,80.179,80.151,0.5]
[1770988832720,0.34471294,80.189,80.151,0.5]
[1770988833037,12.47069386,80.188,80.153,0.5]
[1770988833619,3.83342127,80.18,80.153,0.5]
[1770988833826,3.83342127,80.17,80.153,0.5]
[1770988834029,3.83342127,80.17,80.15,12.47660636]
[1770988834419,3.83342127,80.17,80.15,0.5]
[1770988834944,3.83342127,80.17,80.145,0.5]
[1770988835256,12.47364941,80.169,80.146,0.5]
[1770988835916,3.83342127,80.17,80.146,0.5]
[1770988837038,12.47364941,80.169,80.146,0.5]
[1770988840346,31.18013145,80.18,80.146,0.5]
[1770988840531,3.83342127,80.17,80.148,0.5]
[1770988841644,3.83342127,80.16,80.127,0.5]
[1770988841833,3.83342127,80.15,80.127,0.5]
[1770988842543,3.83342127,80.15,80.126,62.84]
[1770988842544,3.83342127,80.15,80.129,0.5]
[1770988844542,12.47676203,80.149,80.129,0.5]
[1770988848142,12.47676203,80.149,80.126,62.84]
[1770988848328,12.47676203,80.149,80.127,0.5]
[1770988850743,3.83342127,80.15,80.128,0.5]
[1770988850929,12.47520552,80.159,80.128,0.5]
[1770988851329,3.83342127,80.15,80.128,0.5]
[1770988852952,12.47676203,80.149,80.128,0.5]
[1770988854048,3.83342127,80.14,80.104,0.5]
[1770988854252,3.83342127,80.13,80.11,0.5]
[1770988855052,12.47987619,80.129,80.11,0.5]
[1770988855352,3.83342127,80.13,80.109,0.5]
[1770988855531,3.83342127,80.15,80.111,0.5]
[1770988856138,3.83342127,80.14,80.111,0.5]
[1770988857456,3.83342127,80.14,80.113,0.5]
[1770988858155,3.83342127,80.16,80.121,0.5]
[1770988858455,12.47520552,80.159,80.121,0.5]
[1770988859358,3.83342127,80.15,80.123,0.5]
[1770988860458,3.83342127,80.13,80.114,63.04]
[1770988861339,3.83342127,80.13,80.115,12.48205704]
[1770988861539,16.31172023,80.14,80.115,12.48205704]
[1770988861759,16.31172023,80.14,80.116,0.5]
[1770988861954,3.83342127,80.14,80.116,0.5]
[1770988862359,12.47703139,80.148,80.116,0.5]
[1770988862866,3.83342127,80.16,80.121,0.5]
[1770988863042,3.83342127,80.15,80.121,0.5]
[1770988863457,3.83342127,80.15,80.123,0.5]
[1770988864858,3.83342127,80.15,80.124,12.48065498]
[1770988865065,3.83342127,80.15,80.125,0.5]
[1770988866566,12.47676203,80.149,80.125,0.5]
[1770988868571,12.47676203,80.149,80.126,12.48034345]
[1770988870167,12.47676203,80.149,80.126,0.5]
[1770988870567,12.47676203,80.149,80.119,0.5]
[1770988871666,3.83474286,80.13,80.102,0.5]
[1770988871876,3.83474286,80.13,80.106,0.5]
[1770988873570,16.31447224,80.13,80.107,12.48330358]
[1770988873750,16.31447224,80.13,80.108,0.5]
[1770988873951,3.83474286,80.13,80.11,0.5]
[1770988874650,16.31449603,80.13,80.11,0.5]
[1770988876579,3.83474286,80.13,80.11,0.5]
[1770988876757,3.83474286,80.13,80.11,12.98277762]
[1770988876956,3.83474286,80.13,80.111,0.5]
[1770988881567,12.47987619,80.129,80.111,0.5]
[1770988881957,12.47987619,80.129,80.1,12.9843945]
[1770988882276,3.83474286,80.11,80.095,12.48508223]
[1770988882476,43.67956668,80.129,80.092,0.5]
[1770988882664,3.83474286,80.12,80.092,0.5]
[1770988885574,12.48143386,80.119,80.092,0.5]
[1770988886885,3.83474286,80.11,80.092,0.5]
[1770988887487,43.68501852,80.119,80.092,0.5]
[1770988891293,3.83474286,80.11,80.092,0.5]
[1770988893375,3.83474286,80.1,80.082,0.5]
[1770988894076,3.83474286,80.1,80.078,0.5]
[1770988896277,3.83474286,80.1,80.08,0.5]
[1770988897796,0.34471294,80.119,80.082,0.5]
[1770988897998,3.83474286,80.12,80.082,0.5]
[1770988898897,12.48158057,80.119,80.084,0.5]
[1770988899688,3.83474286,80.11,80.084,0.5]
[1770988900984,3.83474286,80.11,80.085,12.48673284]
[1770988901183,3.83474286,80.11,80.086,0.5]
[1770988903097,3.83474286,80.11,80.088,0.5]
[1770988903592,3.83474286,80.12,80.088,0.5]
[1770988903790,3.83474286,80.11,80.088,0.5]
[1770988906101,0.34471294,80.12,80.088,0.5]
[1770988906285,12.48143386,80.119,80.09,0.5]
[1770988906485,3.83474286,80.11,80.09,0.5]
[1770988908186,3.83474286,80.11,80.092,0.5]
[1770988909083,0.34471294,80.12,80.092,0.5]
[1770988909084,3.83474286,80.12,80.092,0.5]
[1770988910304,3.83474286,80.14,80.101,0.5]
[1770988911287,3.83474286,80.14,80.103,0.5]
[1770988912708,3.83474286,80.14,80.105,0.5]
[1770988913907,3.83474286,80.14,80.107,0.5]
[1770988916407,3.83474286,80.14,80.109,0.5]
[1770988916799,3.83474286,80.15,80.109,0.5]
[1770988917108,3.83474286,80.15,80.111,0.5]
[1770988918821,3.83474286,80.15,80.113,0.5]
[1770988919128,3.83474286,80.14,80.113,0.5]
[1770988920310,3.83474286,80.13,80.11,63.28]
[1770988920494,3.83474286,80.12,80.095,0.5]
[1770988920695,3.83474286,80.11,80.095,0.5]
[1770988921002,3.83474286,80.12,80.097,0.5]
[1770988922088,3.83474286,80.12,80.092,0.5]
[1770988922290,3.83474286,80.11,80.086,12.48657692]
[1770988923098,3.83474286,80.11,80.086,12.98657692]
[1770988923612,3.83474286,80.11,80.087,0.5]
[1770988924418,3.83474286,80.12,80.089,0.5]
[1770988927222,3.83474286,80.12,80.09,12.4859533]
[1770988927421,3.83474286,80.12,80.091,0.5]
[1770988928420,3.83474286,80.12,80.093,0.5]
[1770988929508,3.83474286,80.12,80.095,0.5]
[1770988930498,0.34471294,80.13,80.095,0.5]
[1770988930818,0.34471294,80.13,80.101,0.5]
[1770988931122,12.47862499,80.138,80.101,0.5]
[1770988931321,12.47707337,80.147,80.103,0.5]
[1770988931628,3.8360642,80.14,80.103,0.5]
[1770988933415,12.47831892,80.139,80.105,0.5]
[1770988934826,12.47831892,80.139,80.107,0.5]
[1770988936713,3.8360642,80.14,80.107,0.5]
[1770988937033,45.0,80.15,80.099,63.38]
[1770988937034,12.47706543,80.148,80.111,0.5]
[1770988937245,3.8360642,80.14,80.111,0.5]
[1770988938421,12.47706543,80.148,80.111,0.5]
[1770988938931,12.47706543,80.148,80.113,0.5]
[1770988941941,12.47706543,80.148,80.114,12.48221284]
[1770988942139,12.47706543,80.148,80.115,0.5]
[1770988943856,3.8360642,80.14,80.117,0.5]
[1770988944743,45.06,80.146,80.117,0.5]
[1770988946029,12.47738474,80.145,80.119,0.5]
[1770988946429,3.8360642,80.14,80.119,0.5]
[1770988946742,45.08,80.147,80.119,0.5]
[1770988947451,45.1,80.146,80.119,0.5]
[1770988948327,45.1,80.146,80.12,12.48127808]
[1770988948534,45.1,80.146,80.121,0.5]
[1770988950557,45.1,80.146,80.122,12.48096652]
[1770988950850,45.1,80.146,80.123,0.5]
[1770988951550,12.47738474,80.145,80.118,0.5]
[1770988952336,45.16,80.144,80.118,0.5]
[1770988952744,45.16,80.144,80.12,0.5]
[1770988953561,45.16,80.145,80.12,0.5]
[1770988954239,3.8360642,80.17,80.121,0.5]
[1770988954450,45.16,80.169,80.121,0.5]
[1770988954659,45.16,80.169,80.131,0.5]
[1770988954957,3.8360642,80.16,80.133,0.5]
[1770988957358,12.47520552,80.159,80.133,0.5]
[1770988957655,12.47520552,80.159,80.132,12.47940897]
[1770988957958,3.8360642,80.15,80.132,12.47940897]
[1770988958154,12.47520552,80.159,80.133,0.5]
[1770988958950,3.8360642,80.16,80.133,0.5]
[1770988959255,12.47520552,80.159,80.133,0.5]
[1770988960166,12.47520552,80.159,80.134,12.47909751]
[1770988960344,45.18,80.158,80.135,0.5]
[1770988964045,45.18,80.158,80.137,0.5]
[1770988964448,45.18,80.158,79.617,240.44592486]
[1770988964449,0.34471294,80.177,80.141,0.5]
[1770988964769,45.24,80.176,80.141,0.5]
[1770988965064,16.30810673,80.18,80.141,0.5]
[1770988965270,61.58810673,80.18,80.141,0.5]
[1770988965450,92.76795207,80.18,80.141,0.5]
[1770988966160,61.58810673,80.18,80.141,0.5]
[1770988967463,3.8360642,80.17,80.143,0.5]
[1770988970571,12.47364941,80.169,80.144,12.47754042]
[1770988970764,12.47364941,80.169,80.145,0.5]
[1770988970961,0.34471294,80.179,80.145,0.5]
[1770988971773,0.34471294,80.179,80.151,0.5]
[1770988972288,45.42,80.2,80.161,0.5]
[1770988972578,3.8360642,80.19,80.161,0.5]
[1770988972776,12.47053835,80.189,80.163,0.5]
[1770988973273,3.8360642,80.19,80.163,0.5]
[1770988976276,0.1,80.2,80.171,0.5]
[1770988976458,0.2,80.228,80.181,0.49633553]
[1770988976966,45.34,80.243,80.176,62.84]
[1770988976967,3.8360642,80.22,80.191,0.49633553]
[1770988977172,0.2,80.223,80.191,0.49633553]
[1770988977479,3.9360642,80.23,80.191,0.49633553]
[1770988977480,0.1,80.23,80.191,0.49633553]
[1770988977678,0.2,80.229,80.191,0.49633553]
[1770988978163,0.2,80.228,80.193,0.49633553]
[1770988979486,0.2,80.227,80.201,0.49633553]
[1770988980379,0.2,80.225,80.201,0.49633553]
[1770988981385,0.2,80.229,80.201,0.49633553]
[1770988981595,0.1,80.23,80.211,0.48782738]
[1770988982479,0.1,80.23,80.212,0.48782738]
[1770988983272,0.3,80.249,80.221,0.48782738]
[1770988983590,0.3,80.257,80.221,0.48782738]
[1770988984481,0.3,80.255,80.223,0.48782738]
[1770988986787,0.3,80.255,80.224,12.46509772]
[1770988986992,0.3,80.255,80.225,0.48782738]
[1770988988897,0.3,80.255,80.227,0.48782738]
[1770988989599,0.4,80.26,80.231,0.48782738]
[1770988989817,3.9360642,80.26,80.231,0.48782738]
[1770988990303,12.75966184,80.259,80.231,0.48782738]
[1770988990998,12.75966184,80.259,80.233,0.48782738]
[1770988991178,0.3,80.258,80.233,0.48782738]
[1770988993388,0.3,80.256,80.233,0.48782738]
[1770988993910,0.3,80.239,80.211,12.95486473]
[1770988994093,0.3,80.239,80.212,0.48782738]
[1770988996308,0.1,80.26,80.212,0.48782738]
[1770988996507,0.3,80.258,80.221,0.48782738]
[1770988997418,0.3,80.249,80.221,0.48782738]
[1770988997894,0.3,80.239,80.21,0.48782738]
[1770988998487,0.3,80.237,80.21,0.48782738]
[1770988998708,0.3,80.219,80.181,0.48782738]
[1770988999091,0.3,80.209,80.181,0.48782738]
[1770989000716,0.3,80.207,80.181,0.48782738]
[1770989001413,0.3,80.207,80.183,0.48782738]
[1770989001895,3.82391689,80.21,80.183,0.48782738]
[1770989002219,0.3,80.209,80.183,0.48782738]
[1770989003619,12.46686894,80.213,80.18,3.82391689]
[1770989003620,12.46686894,80.213,80.185,0.48782738]
[1770989004306,3.82391689,80.21,80.185,0.48782738]
[1770989004907,12.46478697,80.226,80.185,0.48782738]
[1770989005218,12.46432088,80.229,80.201,0.48782738]
[1770989005713,3.82391689,80.24,80.211,0.48782738]
[1770989005903,3.82391689,80.25,80.211,0.48782738]
[1770989006294,0.3,80.253,80.221,0.48782738]
[1770989006518,3.82391689,80.25,80.221,0.48782738]
[1770989007301,16.28512292,80.25,80.223,0.48782738]
[1770989007621,3.82391689,80.25,80.223,0.48782738]
[1770989008206,12.45970008,80.259,80.223,0.48782738]
[1770989008517,0.3,80.258,80.223,0.48782738]
[1770989009417,0.3,80.258,80.225,0.48782738]
[1770989010798,0.1,80.26,80.225,0.48782738]
[1770989011099,3.92391689,80.26,80.231,0.49476737]
[1770989011800,3.92391689,80.26,80.233,0.49476737]
[1770989012611,0.3,80.258,80.233,0.49476737]
[1770989014003,0.3,80.256,80.233,0.49476737]
[1770989014203,0.1,80.26,80.235,0.49476737]
[1770989015018,0.3,80.259,80.235,0.49476737]
[1770989015327,3.92391689,80.26,80.235,0.49476737]
[1770989016219,3.92391689,80.26,80.237,0.4783838]
[1770989016533,0.3,80.259,80.233,0.4783838]
[1770989017237,16.38353365,80.26,80.233,0.4783838]
[1770989018016,16.68353365,80.26,80.233,0.4783838]
[1770989018516,12.75981708,80.258,80.233,0.4783838]
[1770989018917,12.45981708,80.258,80.233,0.4783838]
[1770989019118,12.45981708,80.258,80.23,3.82391689]
[1770989019119,12.45981708,80.258,80.235,0.4783838]
[1770989019949,3.92391689,80.26,80.235,0.4783838]
[1770989020156,12.45966184,80.259,80.235,0.4783838]
[1770989021140,0.1,80.26,80.237,0.4783838]
[1770989021360,16.38355736,80.26,80.237,0.4783838]
[1770989021958,16.68355736,80.26,80.237,0.4783838]
[1770989022264,0.3,80.259,80.237,0.4783838]
[1770989022555,12.75981708,80.258,80.237,0.4783838]
[1770989022765,0.3,80.257,80.237,0.4783838]
[1770989024755,0.3,80.255,80.237,0.4783838]
[1770989025362,16.38353408,80.26,80.237,0.4783838]
[1770989025550,0.3,80.259,80.237,0.4783838]
[1770989026349,0.1,80.26,80.239,0.4783838]
[1770989026962,0.1,80.26,80.241,0.4783838]
[1770989027874,0.1,80.27,80.251,0.4783838]
[1770989028043,3.92391689,80.27,80.251,0.4783838]
[1770989028647,4.22391689,80.27,80.251,0.4783838]
[1770989029057,0.3,80.268,80.245,0.4783838]
[1770989029244,0.3,80.259,80.233,0.4783838]
[1770989029446,3.82391689,80.25,80.233,0.4783838]
[1770989029756,0.1,80.27,80.235,0.4783838]
[1770989030073,12.4581096,80.269,80.235,0.4783838]
[1770989031447,12.4581096,80.269,80.237,0.4783838]
[1770989032739,3.92391689,80.27,80.237,0.4783838]
[1770989033868,16.38196366,80.27,80.239,0.4783838]
[1770989034861,0.1,80.27,80.241,0.4783838]
[1770989035166,0.1,80.27,80.243,0.4783838]
[1770989036947,0.1,80.27,80.245,0.4783838]
[1770989038151,0.1,80.28,80.251,0.4783838]
[1770989038668,0.1,80.28,80.261,0.4783838]
[1770989039255,0.1,80.28,80.263,0.4783838]
[1770989039472,0.4,80.297,80.263,0.4783838]
[1770989039969,3.82391689,80.29,80.263,0.4783838]
[1770989040369,0.4,80.297,80.263,0.4783838]
[1770989040575,0.45787059,80.308,80.271,0.4783838]
[1770989040951,0.1,80.32,80.291,0.48983664]
[1770989041151,3.92391689,80.32,80.293,0.48983664]
[1770989041368,0.46976359,80.309,80.291,62.56]
[1770989041688,0.46976359,80.299,80.279,0.48983664]
[1770989041855,3.82391689,80.3,80.281,0.48983664]
[1770989042347,4.29368048,80.3,80.281,0.48983664]
[1770989042548,0.46976359,80.299,80.28,12.45640259]
[1770989043669,0.46976359,80.289,80.273,62.56]